fUSD/lending_fUSD_20250311
["ID","MTS","AMOUNT","RATE_DAILY","PERIOD"]
[355904403,1741704646403,-32015.3565274,9e-05,2]
[355904425,1741704653454,150.0,8.77e-05,2]
[355904426,1741704661438,451.35,8.36e-05,2]
[355904760,1741704907958,151.0,8.36e-05,3]
[355904918,1741704989203,2708.1609594,0.0002,120]
[355905092,1741705211680,151.0,8.36e-05,3]
[355905093,1741705264927,150.0,8.729e-05,2]
[355905094,1741705265019,150.0,8.751e-05,2]
[355905095,1741705265206,150.0,8.749e-05,2]
[355905096,1741705265293,150.0,8.742e-05,2]
[355905097,1741705265510,150.0,8.73e-05,2]
[355905098,1741705265700,150.0,8.765e-05,2]
[355905099,1741705265829,150.0,8.79e-05,2]
[355905100,1741705265921,150.0,8.737e-05,2]
[355905101,1741705265993,150.0,8.789e-05,2]
[355905102,1741705267137,150.0,8.735e-05,2]
[355905103,1741705267346,150.0,8.742e-05,2]
[355905104,1741705267408,150.0,8.757e-05,2]
[355905105,1741705267622,150.0,8.737e-05,2]
[355905106,1741705267690,150.0,8.788e-05,2]
[355905107,1741705267772,150.0,8.729e-05,2]
[355905108,1741705267848,150.0,8.74e-05,2]
[355905109,1741705267964,150.0,8.764e-05,2]
[355905110,1741705268056,150.0,8.788e-05,2]
[355905111,1741705268089,150.0,8.78e-05,2]
[355905112,1741705268294,150.0,8.772e-05,2]
[355905113,1741705268335,150.0,8.773e-05,2]
[355905114,1741705268383,150.0,8.739e-05,2]
[355905115,1741705311668,1325.32,8.219e-05,2]
[355905116,1741705323714,150.0,8.728e-05,2]
[355905117,1741705327414,207.28,8.7e-06,2]
[355905123,1741705398411,179.38,8.155e-05,2]
[355905129,1741705484548,168.032745,8.775e-05,2]
[355905130,1741705497176,478.35977895,8.75e-05,3]
[355905131,1741705497200,377.19291129,8.75e-05,3]
[355905132,1741705507230,151.0,8.36e-05,3]
[355905133,1741705524004,9471.80708871,8.8e-05,2]
[355905134,1741705524025,10000.0,8.8e-05,2]
[355905135,1741705524045,10000.0,8.8e-05,2]
[355905136,1741705524066,10000.0,8.8e-05,2]
[355905137,1741705524087,10000.0,8.8e-05,2]
[355905138,1741705524108,10000.0,8.8e-05,2]
[355905139,1741705524131,10000.0,8.8e-05,2]
[355905140,1741705524157,10000.0,8.8e-05,2]
[355905141,1741705524180,10000.0,8.8e-05,2]
[355905142,1741705524207,78078.18375964,8.8e-05,2]
[355905147,1741705716966,-500.0,9e-05,8]
[355905148,1741705732687,29422.48945119,8.694e-05,2]
[355905149,1741705743385,500.0,8.3e-05,3]
[355905150,1741705745509,1100.0,8.4e-05,3]
[355905151,1741705747910,1700.0,8.5e-05,3]
[355905152,1741705749926,2300.0,8.6e-05,3]
[355905153,1741705751942,2900.0,8.7e-05,3]
[355905154,1741705754094,500.0,8.8e-05,3]
[355905155,1741705756230,500.0,8.9e-05,3]
[355905156,1741705758378,500.0,9e-05,3]
[355905157,1741705767256,-150.0,9.562e-05,7]
[355905158,1741705767290,-1000.0,0.0001,5]
[355905159,1741705770807,-467.35525159,8.804e-05,2]
[355905160,1741705770862,-150.0,8.809e-05,2]
[355905161,1741705770917,-150.0,8.809e-05,2]
[355905162,1741705770966,-150.0,8.817e-05,2]
[355905163,1741705771016,-150.0,8.821e-05,2]
[355905164,1741705771064,-150.0,8.823e-05,2]
[355905165,1741705771118,-150.0,8.825e-05,2]
[355905166,1741705771168,-150.0,8.829e-05,2]
[355905167,1741705771219,-150.0,8.83e-05,2]
[355905168,1741705771274,-150.0,8.837e-05,2]
[355905169,1741705771325,-150.0,8.841e-05,2]
[355905170,1741705771373,-150.99,8.841e-05,2]
[355905171,1741705771426,-150.0,8.848e-05,2]
[355905172,1741705771473,-150.0,8.849e-05,2]
[355905173,1741705771521,-150.0,8.854e-05,2]
[355905174,1741705771568,-150.0,8.856e-05,2]
[355905175,1741705771617,-150.0,8.86e-05,2]
[355905176,1741705771671,-150.0,8.86e-05,2]
[355905177,1741705771717,-150.0,8.861e-05,2]
[355905178,1741705772029,-150.0,8.863e-05,2]
[355905179,1741705772076,-150.0,8.869e-05,2]
[355905180,1741705772126,-150.0,8.87e-05,2]
[355905181,1741705772174,-150.0,8.873e-05,2]
[355905182,1741705772221,-150.0,8.877e-05,2]
[355905183,1741705772268,-150.0,8.879e-05,2]
[355905184,1741705772313,-150.0,8.879e-05,2]
[355905185,1741705772361,-150.0,8.885e-05,2]
[355905186,1741705772412,-150.0,8.886e-05,2]
[355905187,1741705772459,-150.0,8.887e-05,2]
[355905188,1741705772506,-150.0,8.887e-05,2]
[355905189,1741705772551,-300.0,8.887e-05,2]
[355905190,1741705772598,-150.0,8.888e-05,2]
[355905191,1741705772654,-150.0,8.892e-05,2]
[355905192,1741705772704,-150.0,8.894e-05,2]
[355905193,1741705772752,-150.0,8.895e-05,2]
[355905194,1741705772802,-150.0,8.896e-05,2]
[355905195,1741705772852,-150.0,8.898e-05,2]
[355905196,1741705772904,-476.2362,8.9e-05,2]
[355905197,1741705772952,-253.99268667,8.9e-05,2]
[355905198,1741705773042,-474.57281333,8.9e-05,2]
[355905199,1741705773093,-679.2531,8.9e-05,2]
[355905200,1741705773382,-150.0,8.903e-05,2]
[355905201,1741705773441,-150.0,8.908e-05,2]
[355905202,1741705773492,-150.0,8.908e-05,2]
[355905203,1741705773544,-150.0,8.912e-05,2]
[355905204,1741705773597,-150.0,8.912e-05,2]
[355905205,1741705773656,-150.0,8.913e-05,2]
[355905206,1741705773710,-150.0,8.914e-05,2]
[355905207,1741705773763,-150.0,8.917e-05,2]
[355905208,1741705773815,-216.50623781,8.92e-05,2]
[355905209,1741705773923,-2007.77978693,8.92e-05,2]
[355905210,1741705773975,-150.0,8.92e-05,2]
[355905211,1741705774027,-150.0,8.92e-05,2]
[355905212,1741705774080,-150.0,8.922e-05,2]
[355905213,1741705774137,-150.0,8.923e-05,2]
[355905214,1741705774195,-150.0,8.925e-05,2]
[355905215,1741705774247,-150.0,8.926e-05,2]
[355905216,1741705774299,-150.0,8.93e-05,2]
[355905217,1741705774351,-150.0,8.931e-05,2]
[355905218,1741705774406,-150.0,8.933e-05,2]
[355905219,1741705774458,-150.0,8.937e-05,2]
[355905220,1741705774510,-150.0,8.941e-05,2]
[355905221,1741705774561,-150.0,8.946e-05,2]
[355905222,1741705774613,-150.0,8.948e-05,2]
[355905223,1741705774670,-150.0,8.948e-05,2]
[355905224,1741705774727,-150.0,8.949e-05,2]
[355905225,1741705774778,-150.0,8.949e-05,2]
[355905226,1741705774831,-150.0,8.95e-05,2]
[355905227,1741705774883,-150.0,8.957e-05,2]
[355905228,1741705774936,-150.0,8.958e-05,2]
[355905229,1741705774986,-150.0,8.96e-05,2]
[355905230,1741705775037,-150.0,8.964e-05,2]
[355905231,1741705775090,-300.0,8.982e-05,2]
[355905232,1741705775143,-150.0,8.982e-05,2]
[355905233,1741705775199,-150.0,8.984e-05,2]
[355905234,1741705775250,-150.0,8.991e-05,2]
[355905235,1741705775298,-619.21467858,8.994e-05,2]
[355905236,1741705775351,-221.57967275,8.994e-05,2]
[355905237,1741705786046,-156.0,9e-05,3]
[355905238,1741705786122,-500.0,0.0001,3]
[355905239,1741705807939,152.0,0.0001,3]
[355905240,1741705816430,-1359.0,8.9e-05,2]
[355905241,1741705816453,-496.28036135,8.994e-05,2]
[355905242,1741705816476,-3262.3399601,8.994e-05,2]
[355905243,1741705816500,-587.296553,8.994e-05,2]
[355905244,1741705816523,-1337.4035578,8.994e-05,2]
[355905245,1741705816546,-319.20010855,8.994e-05,2]
[355905246,1741705816573,-872.0144034,8.994e-05,2]
[355905247,1741705816596,-1000.0,8.998e-05,2]
[355905248,1741705816620,-1000.0,8.998e-05,2]
[355905249,1741705816646,-1000.0,8.998e-05,2]
[355905250,1741705816673,-1000.0,8.998e-05,2]
[355905251,1741705816698,-150.0,8.998e-05,2]
[355905252,1741705816721,-435.0246704,8.999e-05,2]
[355905253,1741705816744,-1369.827,8.999e-05,2]
[355905254,1741705816767,-1183.0,8.999e-05,2]
[355905255,1741705816793,-500.0,8.999e-05,2]
[355905256,1741705816818,-500.0,8.999e-05,2]
[355905257,1741705816843,-500.0,8.999e-05,2]
[355905258,1741705816867,-500.0,8.999e-05,2]
[355905259,1741705816893,-500.0,8.999e-05,2]
[355905260,1741705816923,-540.29184229,8.999e-05,2]
[355905261,1741705816948,-500.0,8.999e-05,2]
[355905262,1741705816972,-364.2571,8.999e-05,2]
[355905263,1741705816996,-168.49,8.999e-05,2]
[355905264,1741705817021,-445.56530783,8.999e-05,2]
[355905265,1741705817047,-42652.00913528,9e-05,2]
[355905266,1741705818440,159.35,8.791e-05,2]
[355905271,1741705832132,-266.0,8.9e-05,2]
[355905272,1741705832143,-353.6986803,8.9e-05,2]
[355905273,1741705832155,-4412.0,8.9e-05,2]
[355905274,1741705832243,-500.0,8.9e-05,2]
[355905275,1741705832254,-1106.4955197,8.9e-05,2]
[355905276,1741705832264,-327.80672019,9e-05,2]
[355905277,1741705832275,-3341.37093081,9e-05,2]
[355905278,1741705832286,-4458.09753364,9e-05,2]
[355905279,1741705832297,-6927.63500677,9e-05,2]
[355905280,1741705832337,-2674.2,9e-05,2]
[355905281,1741705832443,-731.90033457,9e-05,2]
[355905284,1741705832455,-1000.0,9e-05,2]
[355905286,1741705832466,-11545.50068718,9e-05,2]
[355905357,1741705838224,-160.29692041,8.973e-05,2]
[355905358,1741705838234,-225.55750361,8.973e-05,2]
[355905359,1741705838246,-135.70067155,8.973e-05,2]
[355905360,1741705838255,-1286.59285317,9e-05,2]
[355905361,1741705838306,-558.445349,9e-05,2]
[355905365,1741705838463,-2483.72488101,9e-05,2]
[355905368,1741705838475,-506.95104716,9e-05,2]
[355905370,1741705838487,-1405.82486786,9e-05,2]
[355905522,1741705840322,-10907.40110223,9e-05,2]
[355905524,1741705840334,-36715.12886408,9e-05,2]
[355905527,1741705840347,-451.23661252,9e-05,2]
[355905576,1741705840852,-491.22465455,9e-05,2]
[355905834,1741705843326,-208888.29173789,9e-05,2]
[355905836,1741705843336,-51913.38598747,9e-05,2]
[355905838,1741705843349,-3221023.34893796,9e-05,2]
[355905969,1741705845587,-3268.2265522,9e-05,2]
[355905970,1741705845599,-3933.0455086,9e-05,2]
[355905971,1741705845611,-560.47152291,9e-05,2]
[355905972,1741705845623,-627.77380027,9e-05,2]
[355905973,1741705845639,-167812.01424136,9e-05,2]
[355905974,1741705845689,-743.88844783,9e-05,2]
[355905982,1741705847126,-304.78297111,9e-05,2]
[355905983,1741705847137,-8021.8,9e-05,2]
[355905984,1741705847149,-418.06061396,9e-05,2]
[355905985,1741705847160,-424.30500763,9e-05,2]
[355905986,1741705847210,-18251.87978104,9e-05,2]
[355905987,1741705847222,-77018.07465874,9e-05,2]
[355905988,1741705847591,-1086363.15839011,9e-05,2]
[355906074,1741705853165,261.51,8.77e-05,2]
[355906075,1741706015272,1000.0,8.706e-05,2]
[355906076,1741706106319,152.0,8.706e-05,3]
[355906077,1741706207875,8427.14,8.707e-05,2]
[355906078,1741706207900,10000.0,8.707e-05,2]
[355906079,1741706207927,400.37,8.707e-05,2]
[355906080,1741706407150,152.0,8.706e-05,3]
[355906081,1741706486866,500.0,8.7e-05,2]
[355906082,1741706638614,1318.53,8.219e-05,2]
[355906084,1741706707464,152.0,8.706e-05,3]
[355906085,1741706754433,7477.1,8.188e-05,2]
[355906086,1741706754459,10000.0,8.188e-05,2]
[355906087,1741706754482,10000.0,8.188e-05,2]
[355906088,1741706754504,2981.02735218,8.188e-05,2]
[355906109,1741707010560,152.0,8.706e-05,3]
[355906111,1741707018897,361.08,8.664e-05,2]
[355906128,1741707032455,-300.0,8.889e-05,2]
[355906130,1741707032466,-306.31591717,8.89e-05,2]
[355906131,1741707032579,-707.07731665,8.89e-05,2]
[355906132,1741707032591,-629.99914214,8.89e-05,2]
[355906133,1741707032602,-3618.17903458,8.89e-05,2]
[355906134,1741707032613,-2483.7570693,8.89e-05,2]
[355906135,1741707032886,-4472.25,8.89e-05,2]
[355906136,1741707032898,-2697.1634484,8.89e-05,2]
[355906150,1741707038273,-2190.83573262,8.89e-05,2]
[355906152,1741707038284,-8595.71340036,8.89e-05,2]
[355906153,1741707038341,-7140.0786608,8.89e-05,2]
[355906154,1741707038354,-9502.53487798,8.89e-05,2]
[355906155,1741707038363,-807.8543,8.9e-05,2]
[355906156,1741707038373,-426.41266503,8.9e-05,2]
[355906157,1741707038383,-150.0,8.926e-05,2]
[355906158,1741707038393,-550.0,8.926e-05,2]
[355906159,1741707038402,-166.66,8.952e-05,2]
[355906160,1741707038412,-150.0,8.988e-05,2]
[355906161,1741707038422,-454.97997,8.989e-05,2]
[355906162,1741707038432,-195.74618401,8.989e-05,2]
[355906163,1741707038441,-184.27374879,8.989e-05,2]
[355906164,1741707038452,-206.95432309,8.989e-05,2]
[355906165,1741707038461,-500.0,8.989e-05,2]
[355906166,1741707038470,-348.94682123,8.989e-05,2]
[355906167,1741707038482,-151.05317877,8.989e-05,2]
[355906168,1741707038492,-500.0,8.989e-05,2]
[355906169,1741707038502,-266.40440269,8.989e-05,2]
[355906228,1741707039382,-233.59559731,8.989e-05,2]
[355906230,1741707039392,-440.10000509,8.989e-05,2]
[355906232,1741707039401,-184334.77545657,8.99e-05,2]
[355906234,1741707039411,-99999.99999901,8.99e-05,2]
[355906236,1741707039421,-10142.90407728,8.99e-05,2]
[355906238,1741707039430,-154540.50664195,8.99e-05,2]
[355906240,1741707039441,-709.08266212,8.99e-05,2]
[355906250,1741707039538,-822.49017547,8.99e-05,2]
[355906255,1741707039582,-3758.59430738,8.99e-05,2]
[355906257,1741707039593,-468.40396298,8.99e-05,2]
[355906260,1741707039604,-3261.28713495,8.99e-05,2]
[355906262,1741707039615,-443.13092382,8.99e-05,2]
[355906264,1741707039626,-23999.32410261,8.99e-05,2]
[355906282,1741707039809,-2266.97143506,8.99e-05,2]
[355906284,1741707039821,-785.03255407,8.99e-05,2]
[355906409,1741707041311,-2146.19566244,8.99e-05,2]
[355906411,1741707041324,-571.16682365,8.99e-05,2]
[355906413,1741707041336,-1027.43750262,8.99e-05,2]
[355906415,1741707041347,-1363.68834929,8.99e-05,2]
[355906417,1741707041359,-3870.5141248,8.99e-05,2]
[355906419,1741707041370,-1516.91232355,8.99e-05,2]
[355906421,1741707041381,-4756.00290939,8.99e-05,2]
[355906424,1741707041393,-717.74272577,8.99e-05,2]
[355906436,1741707041505,-880.2633777,8.99e-05,2]
[355906438,1741707041517,-43272.57584026,8.99e-05,2]
[355906440,1741707041529,-1185.4450484,8.99e-05,2]
[355906443,1741707041541,-4023.48683398,8.99e-05,2]
[355906446,1741707041559,-2440.51128,8.99e-05,2]
[355906489,1741707041975,-7153.73604969,8.99e-05,2]
[355906492,1741707041987,-158776.70656848,8.99e-05,2]
[355906494,1741707042002,-1092.27862809,8.99e-05,2]
[355906551,1741707045115,-3646.2157,8.89e-05,2]
[355906552,1741707045124,-1975.525951,8.99e-05,2]
[355906553,1741707045135,-3103.3582,8.99e-05,2]
[355906554,1741707045146,-1678.22164924,8.99e-05,2]
[355906555,1741707045267,-169574.08871688,8.99e-05,2]
[355906556,1741707045279,-22250.0,8.99e-05,2]
[355906557,1741707045290,-3851.88067642,8.99e-05,2]
[355906558,1741707045301,-8907.03180495,8.99e-05,2]
[355906559,1741707045410,-19859.22798011,8.99e-05,2]
[355906560,1741707045422,-22927.74840001,8.99e-05,2]
[355906561,1741707045433,-5307.27452574,8.99e-05,2]
[355906562,1741707045445,-2002.09643,8.99e-05,2]
[355906571,1741707046775,-7262.26290871,8.99e-05,2]
[355906572,1741707046787,-812.4448779,8.99e-05,2]
[355906573,1741707046798,-27750.92109197,8.99e-05,2]
[355906574,1741707046809,-309.415,8.99e-05,2]
[355906589,1741707065052,1000.0,8.726e-05,2]
[355906640,1741707240323,5505.89264782,8.641e-05,2]
[355906641,1741707240349,2138.21735218,8.641e-05,2]
[355906642,1741707362095,300.0,8.889e-05,2]
[355906643,1741707421478,100.0,8.889e-05,2]
[355906644,1741707538023,173.26,8.412e-05,2]
[355906646,1741707666370,2230.9752,8.8e-05,2]
[355906670,1741707713161,300.0,8.3e-05,3]
[355906671,1741707715322,600.0,8.4e-05,3]
[355906672,1741707717599,1000.0,8.5e-05,3]
[355906673,1741707719744,1300.0,8.6e-05,3]
[355906674,1741707721807,1700.0,8.7e-05,3]
[355906675,1741707723919,300.0,8.8e-05,3]
[355906677,1741707730111,257.54744782,8.8e-05,2]
[355906678,1741707730134,55.50415218,8.8e-05,2]
[355906731,1741707800491,151.6906,8.8e-05,2]
[355906732,1741707895072,1310.14,8.219e-05,2]
[355906733,1741707928786,1230.9191,8.8e-05,2]
[355906734,1741707938689,250.0,8.442e-05,2]
[355906736,1741708101356,1000.0,8.419e-05,2]
[355906737,1741708199620,-428.04427292,8.897e-05,2]
[355906740,1741708231694,-121.95572708,8.897e-05,2]
[355906741,1741708231705,-150.0,8.898e-05,2]
[355906742,1741708231716,-150.0,8.899e-05,2]
[355906743,1741708231726,-293.74748049,8.9e-05,2]
[355906744,1741708231738,-4536.81552925,8.9e-05,2]
[355906745,1741708231754,-646.85145781,8.9e-05,2]
[355906746,1741708231767,-741.66842505,8.9e-05,2]
[355906747,1741708231781,-320.5149916,8.9e-05,2]
[355906748,1741708231794,-1555.82796905,8.9e-05,2]
[355906749,1741708231807,-551.07319303,8.9e-05,2]
[355906750,1741708231821,-814.82425458,8.9e-05,2]
[355906751,1741708231834,-1982.721,8.9e-05,2]
[355906752,1741708231847,-36910.79713,8.9e-05,2]
[355906753,1741708231860,-782.94,8.9e-05,2]
[355906754,1741708231872,-720.33,8.9e-05,2]
[355906755,1741708231884,-300.3,8.9e-05,2]
[355906756,1741708231896,-2690.21737018,8.9e-05,2]
[355906757,1741708231908,-959.96318,8.9e-05,2]
[355906758,1741708232046,-2450.000002,8.9e-05,2]
[355906759,1741708232058,-2008.98499014,8.9e-05,2]
[355906760,1741708232071,-1322.22029579,8.9e-05,2]
[355906761,1741708232083,-2232.82259904,8.9e-05,2]
[355906762,1741708232094,-444.24002839,8.9e-05,2]
[355906763,1741708232105,-591.7637998,8.9e-05,2]
[355906764,1741708232117,-9102.0,8.9e-05,2]
[355906765,1741708232225,-7713.95572957,8.9e-05,2]
[355906766,1741708232236,-322.83442247,8.9e-05,2]
[355906767,1741708232249,-1591.5944406,8.9e-05,2]
[355906803,1741708238924,-2199.745,8.9e-05,2]
[355906804,1741708238936,-4242.03517662,8.9e-05,2]
[355906805,1741708238947,-3642.36,8.9e-05,2]
[355906806,1741708238959,-268.25522138,8.9e-05,2]
[355906807,1741708238991,-58914.10396174,8.9e-05,2]
[355906808,1741708239000,-150.0,8.959e-05,2]
[355906809,1741708239012,-1085.03,8.989e-05,2]
[355906810,1741708239022,-1183.0,8.989e-05,2]
[355906811,1741708239032,-500.0,8.989e-05,2]
[355906812,1741708239042,-625.89410896,8.989e-05,2]
[355906813,1741708239052,-2637.13503592,8.989e-05,2]
[355906814,1741708239062,-9173.43563247,8.99e-05,2]
[355906815,1741708239074,-5600.0637343,8.99e-05,2]
[355906816,1741708239180,-598.869,8.99e-05,2]
[355906817,1741708239192,-634.7954321,8.99e-05,2]
[355906818,1741708239204,-278.1174902,8.99e-05,2]
[355906819,1741708239215,-939.3309963,8.99e-05,2]
[355906820,1741708239227,-727.95966854,8.99e-05,2]
[355906821,1741708239238,-74393.81622593,8.99e-05,2]
[355906822,1741708239248,-167106.18377407,8.99e-05,2]
[355906823,1741708239323,-515.29482318,8.99e-05,2]
[355906837,1741708240495,-97140.713735,8.99e-05,2]
[355906840,1741708240506,-699.43178922,8.99e-05,2]
[355906842,1741708240522,-402.77474874,8.99e-05,2]
[355906844,1741708240534,-297.82867182,8.99e-05,2]
[355906846,1741708240549,-859.76791332,8.99e-05,2]
[355906848,1741708240563,-69888.59773098,8.99e-05,2]
[355906854,1741708240606,-23435.02649999,8.99e-05,2]
[355906856,1741708240618,-10532.0,8.99e-05,2]
[355906858,1741708240630,-31633.38717186,8.99e-05,2]
[355906860,1741708240642,-2584.5,8.99e-05,2]
[355906880,1741708240861,-456.81636,8.99e-05,2]
[355906881,1741708240873,-6387.23637631,8.99e-05,2]
[355906882,1741708240885,-1214.96793904,8.99e-05,2]
[355906883,1741708240897,-2956.76306872,8.99e-05,2]
[355906884,1741708240910,-2066.95233688,8.99e-05,2]
[355906900,1741708242820,-1457.86285409,8.99e-05,2]
[355906901,1741708242833,-276.29565446,8.99e-05,2]
[355906902,1741708242844,-709.00241687,8.99e-05,2]
[355906903,1741708242856,-455.37695136,8.99e-05,2]
[355906904,1741708242867,-3197.54513101,8.99e-05,2]
[355906906,1741708242879,-133972.99464771,8.99e-05,2]
[355906923,1741708244518,-2000.0,8.99e-05,2]
[355906924,1741708244529,-548.915419,8.99e-05,2]
[355906925,1741708244617,-3846.78455,8.99e-05,2]
[355906926,1741708244629,-397.08635398,8.99e-05,2]
[355906927,1741708244641,-910.01485782,8.99e-05,2]
[355906928,1741708244652,-29878.69879161,8.99e-05,2]
[355906929,1741708244663,-504.38255991,8.99e-05,2]
[355906930,1741708244674,-838.48,8.99e-05,2]
[355906947,1741708246333,-269.38241397,8.99e-05,2]
[355906950,1741708246488,-1567.71047342,8.99e-05,2]
[355906951,1741708246501,-4449.60000012,8.99e-05,2]
[355906952,1741708246516,-4915.45314571,8.99e-05,2]
[355906953,1741708246528,-910.07126,8.99e-05,2]
[355906954,1741708246540,-1509.11451349,8.99e-05,2]
[355906955,1741708246551,-1143.97892178,8.99e-05,2]
[355906956,1741708246592,-2083.19796923,8.99e-05,2]
[355906957,1741708246707,-1280.31999976,8.99e-05,2]
[355906959,1741708280376,582.08,8.478e-05,2]
[355906963,1741708464398,1649.76613415,0.0002001,120]
[355906966,1741708515234,165.1,8.706e-05,2]
[355906968,1741708534240,2000.0,8.683e-05,2]
[355906970,1741708719651,200.0,8.673e-05,2]
[355906992,1741709014776,1244.63,8.219e-05,2]
[355906994,1741709060405,200.0,8.178e-05,2]
[355906998,1741709200158,167.19,8.393e-05,2]
[355907000,1741709219256,1000.0,8.676e-05,2]
[355907003,1741709296803,500.0,0.0001,120]
[355907004,1741709307765,-150.0,8.887e-05,2]
[355907005,1741709307813,-300.0,8.887e-05,2]
[355907006,1741709307862,-3719.65869005,8.888e-05,2]
[355907008,1741709328126,442.74614782,8.547e-05,2]
[355907009,1741709328150,9773.10385218,8.547e-05,2]
[355907016,1741709382583,-150.0,8.887e-05,2]
[355907017,1741709382633,-6984.93526975,8.888e-05,2]
[355907018,1741709382733,-3974.3070024,8.888e-05,2]
[355907050,1741709432050,-1533.19944972,8.888e-05,2]
[355907051,1741709432061,-6320.08751892,8.888e-05,2]
[355907052,1741709432074,-3759.34505082,8.888e-05,2]
[355907053,1741709432086,-1099.898805,8.888e-05,2]
[355907054,1741709432158,-1086.77171001,8.888e-05,2]
[355907055,1741709432170,-4473.8908828,8.888e-05,2]
[355907056,1741709432182,-8820.0,8.888e-05,2]
[355907057,1741709432194,-262.00000004,8.888e-05,2]
[355907125,1741709437878,-284.4,8.888e-05,2]
[355907127,1741709438015,-1301.22,8.888e-05,2]
[355907128,1741709438027,-698.75107007,8.888e-05,2]
[355907129,1741709438175,-1582.494,8.888e-05,2]
[355907130,1741709438188,-1908.24,8.888e-05,2]
[355907131,1741709438199,-483.38612668,8.888e-05,2]
[355907132,1741709438212,-408.31,8.888e-05,2]
[355907144,1741709440177,-394.32139738,8.888e-05,2]
[355907145,1741709440420,-28552.4357388,8.888e-05,2]
[355907146,1741709440432,-274.60199781,8.888e-05,2]
[355907148,1741709440602,-425.33046105,8.888e-05,2]
[355907149,1741709440614,-999.49157468,8.888e-05,2]
[355907150,1741709440627,-2617.05977064,8.888e-05,2]
[355907151,1741709440639,-1401.6,8.888e-05,2]
[355907203,1741709443015,-12171.8442161,8.888e-05,2]
[355907204,1741709443027,-9160.54051025,8.888e-05,2]
[355907223,1741709444678,-9622.39150227,8.888e-05,2]
[355907224,1741709444690,-9010.0609621,8.888e-05,2]
[355907225,1741709444702,-3922.4665164,8.888e-05,2]
[355907226,1741709444713,-2921.08616189,8.888e-05,2]
[355907227,1741709444725,-2385.01509259,8.888e-05,2]
[355907228,1741709444738,-1045.14,8.888e-05,2]
[355907229,1741709444750,-781.89450995,8.888e-05,2]
[355907230,1741709444761,-314326.50388551,8.888e-05,2]
[355907231,1741709444774,-28801.11608498,8.888e-05,2]
[355907232,1741709444785,-3630.86108866,8.9e-05,2]
[355907233,1741709444794,-551.33663527,8.9e-05,2]
[355907234,1741709444804,-18319.38660749,8.9e-05,2]
[355907235,1741709444819,-551.33663525,8.95e-05,2]
[355907236,1741709444829,-1183.0,8.989e-05,2]
[355907237,1741709444839,-1098.99,8.989e-05,2]
[355907238,1741709444849,-35002.65778971,8.99e-05,2]
[355907239,1741709444861,-10891.72680604,8.99e-05,2]
[355907240,1741709444873,-2695.75,8.99e-05,2]
[355907242,1741709447068,-741.1586,8.99e-05,2]
[355907243,1741709447080,-8149.8077358,8.99e-05,2]
[355907244,1741709483056,226.89614782,8.788e-05,2]
[355907245,1741709483085,208.47425218,8.788e-05,2]
[355907246,1741709496211,787.7183,8.788e-05,2]
[355907247,1741709514070,1559.47779497,8.662e-05,2]
[355907249,1741709537720,500.0,8.788e-05,2]
[355907250,1741709544153,200.0,8.3e-05,3]
[355907251,1741709546219,500.0,8.4e-05,3]
[355907252,1741709547973,800.0,8.5e-05,3]
[355907253,1741709550063,1100.0,8.6e-05,3]
[355907254,1741709552174,1400.0,8.7e-05,3]
[355907255,1741709555018,200.0,8.8e-05,3]
[355907256,1741709576252,2744.32965285,8.788e-05,2]
[355907257,1741709576274,10000.0,8.788e-05,2]
[355907258,1741709576297,5998.86414715,8.788e-05,2]
[355907259,1741709577956,654.142,8.788e-05,2]
[355907262,1741709625676,411.75,8.674e-05,2]
[355907276,1741709691695,206.09,8.145e-05,2]
[355907277,1741709691873,206.09,8.166e-05,2]
[355907278,1741709696147,206.09,8.187e-05,2]
[355907279,1741709697072,206.09,8.209e-05,2]
[355907280,1741709697455,206.09,8.23e-05,2]
[355907281,1741709697686,206.09,8.252e-05,2]
[355907282,1741709697929,206.09,8.273e-05,2]
[355907283,1741709698176,206.09,8.294e-05,2]
[355907284,1741709698395,206.09,8.316e-05,2]
[355907285,1741709698619,206.09,8.337e-05,2]
[355907286,1741709698897,206.09,8.359e-05,2]
[355907287,1741709699058,206.09,8.38e-05,2]
[355907288,1741709699301,206.09,8.402e-05,2]
[355907289,1741709699497,206.09,8.423e-05,2]
[355907290,1741709699755,49.98385285,8.444e-05,2]
[355907291,1741709699777,156.10614715,8.444e-05,2]
[355907292,1741709700062,206.09,8.466e-05,2]